{"text_format":"1","workbook":"xlsx","n_sheets":1,"sheets":["E1000295-v1"],"not_rendered":{"charts":0,"images":1,"macros":1,"external_links":0,"defined_names":11,"comments":0,"pivot_tables":0},"unopened":[],"bounds":{"document_bytes":16777216,"sheet_cells":100000,"rows_first":2000,"rows_last":500,"rows_between":2000,"halvings":0,"cell_chars":16384,"cell_head_chars":4096},"cells_cut":0,"cells_raw":0,"read":"whole","date_system":"1900"}

{"sheet":"E1000295-v1","index":0,"n_rows":119,"n_cols":29,"rows_kept":119,"cut":false,"hidden":false,"merged":[[37,3,37,9],[38,21,38,22],[29,24,36,24],[29,25,36,25],[29,27,36,27],[37,17,37,18],[31,28,34,31],[36,10,36,13],[29,26,35,26],[10,2,10,4],[13,2,13,4],[11,2,11,4],[16,2,16,5]]}
[]
[null,"CALIFORNIA INSTITUTE OF TECHNOLOGY"]
[]
[]
[]
[null,"FORMAL DRAWING TREE REFERENCE DOCUMENT"]
[]
[null,"TITLE: ","aLIGO TCS Ring Heater replacement Fixture Assemby"]
[null,null,"for Design Review"]
[]
[null,"DOCUMENT CONTROL NO.:","E1100656",null,null,"-v1"]
[null,"RELATED DOC. CHANGE NO.: ","E1100655",null,null,"-v1"]
[]
[null,"CONTAINING ASSEMBLY:","D1003193",null,null,"-v2"]
[]
[null,"AUTHOR: ","M. JACOBSON"]
[null,"DATE: ","2011-08-22"]
[]
[null,"PURPOSE: ","This document is the formal reference for necessary revisions of each child of the stated assemblies, and the total necessary quantities for all items."]
[]
[]
[]
[]
[]
[]
[]
[]
[]
[]
["Subsystem:","RH",null,null,null,null,null,null,null,null,null,null,null,null,null,null,null,null,null,null,null,null,null,null,"PDR","delta-PDR","FDR","XXX"]
["Reporter:","Mindy Jacobson"]
["Date:","2010-08-09",null,null,null,null,null,null,null,null,null,null,null,null,null,null,null,null,null,null,null,null,null,null,null,null,null,null,"RESERVED for\nPROCUREMENT TRACKING"]
[]
[null,"Total No. Dwgs = ",{"$f":"COUNT(#REF!,W119:W128)","v":0}]
[null,"Aggregate %-complete = ",{"$f":"SUM(#REF!,W119:W128)/C34","v":{"$error":"#REF!"}}]
[]
[null,null,null,null,null,null,null,null,null,null,"QUANTITY"]
["DCN","NOTES","Level","INDENTURE CHART",null,null,null,null,null,null,"REQ'd","SPARE","TOT.","UNITS","DWG TREE REF. NO.","MATERIAL","DCC No.","TYPE\n[config.]",null,"NAME","TYPE","MODEL STATUS","DWG STATUS","SOURCE","REV.","REV.","REV.","REV."]
["No.",null,null,null,null,null,null,null,null,null,null,null,null,null,null,null,null,null,null,null,null,"% COMPLETE"]
["E1100655-v1",null,0,{"$f":"$C40","v":0},0,0,0,0,0,0,1,null,{"$f":"L40+K40","v":1},"EA","E1100656-v1","-","D1003193",-1,-2,"VIEWPORT ENCLOSURE ASSY, H2 CO2P","TopAssy",100,90,"MTS","N/A","V2","v3",null,{"$f":"2780*30","v":83400}]
[null,null,1,1,1,1,1,1,1,1,1,null,1,"EA",null,"-","D1003194","-","-","PRIMARY FLANGE VIEWPORT ASSY","ASSY",null,null,"MTS",null,null,"v2"]
[null,null,2,2,2,2,2,2,2,2,1,null,1,"EA",null,"Al 6061","D1003209","-","-","CLAMPING FLANGE, CO2P VP ENCLOSURE","PRT",null,null,"MTS",null,null,"v2"]
[null,null,2,2,2,2,2,2,2,2,2,1,3,"EA",null,"PEEK or TEFLON","D1100495","-","-","WASHER, CLAMP RING","PRT",null,null,"MTS",null,null,"v2"]
[null,"II-VI",2,2,2,2,2,2,2,2,1,null,1,"EA",null,"ZnSe","D1100439","-","-","ZnSe VIEWPORT, 3 IN OD. 0.5 IN THICK, 60' WEDGE","PRT",null,null,"MTS",null,null,"v1"]
[null,"HEREAUS",2,2,2,2,2,2,2,2,1,null,1,"EA",null,"FUSED SILICA","D1100540","-","-","aLIGO TCS 0.5 IN THICK OPTICAL WINDOW","PRT",null,null,"MTS",null,null,"v1"]
[null,null,2,2,2,2,2,2,2,2,1,null,1,"EA",null,"SSTL","D1003196","-","-","aLIGO TCS 10-IN CUSTOM VP FLANGE","PRT",null,null,"MTS",null,null,"v2"]
[null,null,2,2,2,2,2,2,2,2,4,1,5,"EA",null,"VITON","D080631","-","-","ORING, 3 IN VIEWPORTS","PRT",null,null,"MTS",null,null,"v3"]
[null,"EBARA CF-10 HW KIT",2,2,2,2,2,2,2,2,1,null,1,"EA",null,"STL","KNP-800-12","-","-","12-PT BOLT, 5/16-24 UNC-2A X 2.25 +WASHER, QTY 48 +NUTPLATES, QTY 24","HW",null,null,"OTS"]
[null,"UC COMPONENTS",2,2,2,2,2,2,2,2,12,3,15,"EA",null,"18-8 SS, Ag PLT","C-1016-NA","-","-","SHCS 10-32 UNF-2A X 1 IN LONG","HW",null,null,"OTS"]
[null,null,1,1,1,1,1,1,1,1,1,null,1,"EA",null,"-","D1003204",-1,-2,"VP ENCLOSURE FRONT COVER ASSY, CO2P","ASSY",null,null,"MTS",null,null,"v3"]
[null,null,2,2,2,2,2,2,2,2,1,null,1,"EA",null,"Al 6061","D1003206",-1,-2,"VP ENCLOSURE FRONT WALL, FIXED","PRT",null,null,"MTS",null,null,"v3"]
[null,null,2,2,2,2,2,2,2,2,1,null,1,"EA",null,"-","D1100493","-","-","TCS 0.25 IN THICK ZnSe WINDOW CLAM SHELL ASSY","ASSY",null,null,"MTS",null,null,"v1"]
[null,null,3,3,3,3,3,3,3,3,1,1,2,"EA",null,"VITON","D080631","-","-","ORING, 3 IN VIEWPORTS","PRT",null,null,"MTS",null,null,"v3"]
[null,null,3,3,3,3,3,3,3,3,1,null,1,"EA",null,"Al 6061","D1003208",null,null,"MOUNTING PLATE, CO2P VP COVER","PRT",null,null,"MTS",null,null,"v1"]
[null,null,3,{"$f":"$C55","v":3},3,3,3,3,3,3,1,null,1,"EA",null,"Al 6061","D1100250",null,null,"MOUNTING PLATE COVER REAR, CO2P VP COVER","PRT",null,null,"MTS",null,null,"v1"]
[null,"II-VI",3,3,3,3,3,3,3,3,1,null,1,"EA",null,"ZnSe","D1100485",null,null,"ZnSe VIEWPORT, 3 IN OD. 0.25 IN THICK, 60' WEDGE","PRT",null,null,"MTS",null,null,"v1"]
[null,null,3,3,3,3,3,3,3,3,1,1,2,"EA",null,"PEEK or TEFLON","D1100495","-","-","WASHER, CLAMP RING","PRT",null,null,"MTS",null,null,"v2"]
[null,null,3,3,3,3,3,3,3,3,1,1,2,"EA",null,null,"D1100496",null,null,"VIEWPORT THERMOCOUPLE","HW",null,null,"OTS"]
[null,"UC COMPONENTS",3,3,3,3,3,3,3,3,4,1,5,"EA",null,"18-8 SSTL","C-610-N",null,null,"SHCS 6-32 UNC-2A X .625 IN LONG","HW",null,null,"OTS"]
[null,null,2,2,2,2,2,2,2,2,1,null,1,"EA",null,"-","D1100494","-","-","TCS 0.25 IN THICK OPTICAL WINDOW CLAM SHELL ASSY","ASSY",null,null,"MTS",null,null,"v2"]
[null,"HEREAUS",3,3,3,3,3,3,3,3,1,null,1,"EA",null,"FUSED SILICA","D1100539",null,null,"aLIGO TCS 0.25 IN THICK OPTICAL WINDOW","PRT",null,null,"MTS",null,null,"v2"]
[null,null,3,3,3,3,3,3,3,3,1,1,2,"EA",null,"VITON","D080631","-","-","ORING, 3 IN VIEWPORTS","PRT",null,null,"MTS",null,null,"v3"]
[null,null,3,3,3,3,3,3,3,3,1,null,1,"EA",null,"Al 6061","D1003208",null,null,"MOUNTING PLATE, CO2P VP COVER","PRT",null,null,"MTS",null,null,"v1"]
[null,null,3,3,3,3,3,3,3,3,1,null,1,"EA",null,"Al 6061","D1100250",null,null,"MOUNTING PLATE COVER REAR, CO2P VP COVER","PRT",null,null,"MTS",null,null,"v1"]
[null,null,3,3,3,3,3,3,3,3,1,1,2,"EA",null,"PEEK or TEFLON","D1100495","-","-","WASHER, CLAMP RING","PRT",null,null,"MTS",null,null,"v2"]
[null,"UC COMPONENTS",3,3,3,3,3,3,3,3,4,1,5,"EA",null,"18-8 SSTL","C-610-N",null,null,"SHCS 6-32 UNC-2A X .625 IN LONG","HW",null,null,"OTS"]
[null,null,2,2,2,2,2,2,2,2,4,1,5,"EA",null,"VITON","D080631","-","-","ORING, 3 IN VIEWPORTS","PRT",null,null,"MTS",null,null,"v3"]
[null,null,2,2,2,2,2,2,2,2,2,2,4,"EA",null,"Al 6061","D1100413","-","-","STRESS RELIEF BAR","PRT",null,null,"MTS",null,null,"v1"]
[null,"UC COMPONENTS",2,2,2,2,2,2,2,2,16,4,20,"EA",null,"18-8 SSTL","C-607-N",null,null,"SHCS 6-32 UNC-2A X .4375 LONG","HW",null,null,"OTS"]
[null,"UC COMPONENTS",2,2,2,2,2,2,2,2,4,2,{"$f":"L70+K70","v":6},"EA",null,"18-8 SSTL","C-605-N",null,null,"SHCS 6-32 UNC-2A X .3125 LONG","HW",null,null,"OTS"]
[null,null,2,2,2,2,2,2,2,2,16,4,{"$f":"L71+K71","v":20},"EA",null,"18-8 SSTL","C-608-N",null,null,"SHCS 6-32 UNC-2A X .5 LONG","HW",null,null,"OTS"]
[null,null,2,2,2,2,2,2,2,2,8,2,10,"EA",null,"18-8 SSTL","C-1824-N",null,null,"SHCS .3125-18 X 1.5 LONG","HW",null,null,"OTS"]
[null,null,1,1,1,1,1,1,1,1,1,null,1,"EA",null,"-","D1003210",-1,-2,"VP ENCLOSURE SIDE OPTOMECH ASSY, CO2P","ASSY",null,null,"MTS",null,null,"v2"]
[null,null,2,2,2,2,2,2,2,2,1,null,1,"EA",null,"Al 6061","D1003213",-1,-2,"SIDE OPTOMECH WALL, CO2P VP ENCLOSURE","PRT",null,null,"MTS",null,null,"v2"]
[null,"MSC",2,2,2,2,2,2,2,2,2,2,{"$f":"L75+K75","v":4},"EA",null,"NBR",79311791,null,null,"GROMMET, 1 IN ID X 1.75 IN OD, .1875 IN GROVE, MS35489-81","HW",null,null,"OTS"]
[null,"UC COMPONENTS",2,{"$f":"$C76","v":2},2,2,2,2,2,2,26,4,{"$f":"L76+K76","v":30},"EA",null,"18-8 SSTL","C-608-N",null,null,"SHCS 6-32 UNC-2A X .5 LONG","HW",null,null,"OTS"]
[null,null,1,1,1,1,1,1,1,1,1,null,{"$f":"L77+K77","v":1},"EA",null,"Al 6061","D1003214",-1,-2,"VP ENCLOSURE TOP WALL, CO2P","PRT",null,null,"MTS",null,null,"v2"]
[null,null,1,1,1,1,1,1,1,1,1,null,1,"EA",null,"-","D1003215","-","-","VP ENCLOSURE SIDE COVER ASSY, CO2P","ASSY",null,null,"MTS",null,null,"v1"]
[null,null,2,2,2,2,2,2,2,2,1,null,1,"EA",null,"Al 6061","D1003216","-","-","SIDE COVER WALL, CO2P VP ENCLOSURE","PRT",null,null,"MTS",null,null,"v1"]
[null,"MSC",2,2,2,2,2,2,2,2,1,null,1,"EA",null,"Zn PLT STL",32845752,null,null,"6.5 IN x 1.75 IN DOOR PULL, Zn PLATED STEEL","HW",null,null,"OTS"]
[null,"UC COMPONENTS",2,2,2,2,2,2,2,2,4,1,5,"EA",null,"18-8 SSTL","FA-810-N",null,null,"FSHCS, 8-32 X .625 LONG","HW",null,null,"OTS"]
[null,"UC COMPONENTS",2,2,2,2,2,2,2,2,4,1,{"$f":"L82+K82","v":5},"EA",null,"18-8 SSTL","WF-08",null,null,"FLAT WASHER, 8-32","HW",null,null,"OTS"]
[null,"UC COMPONENTS",2,2,2,2,2,2,2,2,4,1,{"$f":"L83+K83","v":5},"EA",null,"18-8 SSTL","N-832",null,null,"HEX NUT, 8-32","HW",null,null,"OTS"]
[null,"MSC",2,2,2,2,2,2,2,2,12,3,{"$f":"L84+K84","v":15},"EA",null,"18-8 SSTL",41852401,null,null,"CAPTIVE SHCS 8-32 X .1875 THD X .50 LONG","HW",null,null,"OTS"]
[null,null,1,1,1,1,1,1,1,1,1,null,1,"EA",null,"-","D1003217",-1,-2,"VP ENCLOSURE BACK COVER ASSY, CO2P","ASSY",null,null,"MTS",null,null,"v1"]
[null,null,2,2,2,2,2,2,2,2,1,null,1,"EA",null,"Al 6061","D1003218","-","-","BACK WALL, CO2P VP ENCLOSURE","PRT",null,null,"MTS",null,null,"v1"]
[null,"MSC",2,2,2,2,2,2,2,2,1,null,1,"EA",null,"Zn PLT STL",32845752,null,null,"6.5 IN x 1.75 IN DOOR PULL, Zn PLATED STEEL","HW",null,null,"OTS"]
[null,"UC COMPONENTS",2,2,2,2,2,2,2,2,8,2,10,"EA",null,"18-8 SSTL","FA-810-N",null,null,"FSHCS, 8-32 X .625 LONG","HW",null,null,"OTS"]
[null,"UC COMPONENTS",2,{"$f":"$C89","v":2},2,2,2,2,2,2,8,2,{"$f":"L89+K89","v":10},"EA",null,"18-8 SSTL","WF-08",null,null,"FLAT WASHER, 8-32","HW",null,null,"OTS"]
[null,"UC COMPONENTS",2,2,2,2,2,2,2,2,8,2,{"$f":"L90+K90","v":10},"EA",null,"18-8 SSTL","N-832",null,null,"HEX NUT, 8-32","HW",null,null,"OTS"]
[null,"MSC",2,2,2,2,2,2,2,2,16,4,{"$f":"L91+K91","v":20},"EA",null,"18-8 SSTL",41852401,null,null,"CAPTIVE SHCS 8-32 X .1875 THD X .50 LONG","HW",null,null,"OTS"]
[null,null,1,1,1,1,1,1,1,1,1,null,{"$f":"L92+K92","v":1},"EA",null,"Al 6061","D1003219","-","-","MOUNTING ROD, SIDE-TO-BACK COVERS","PRT",null,null,"MTS",null,null,"v1"]
[null,"UC COMPONENTS",1,1,1,1,1,1,1,1,2,2,4,"EA",null,"18-8 SSTL","C-608-N",null,null,"SHCS 6-32 UNC-2A X .5 LONG","HW",null,null,"OTS"]
[null,null,1,1,1,1,1,1,1,1,1,null,1,"EA",null,"-","D1003221",-1,-2,"VP ENCLOSURE LOWER WALL ASSY, CO2P","ASSY",null,null,"MTS",null,null,"v3"]
[null,null,2,2,2,2,2,2,2,2,1,null,1,"EA",null,"Al 6061","D1003220",-1,-2,"BOTTOM WALL, CO2P VP ENCLOSURE","PRT",null,null,"MTS",null,null,"v2"]
[null,null,2,2,2,2,2,2,2,2,1,null,1,"EA",null,"304 SSTL","D1003222","-","-","PERISCOPE INTERFACE FLANGE, FEMALE","PRT",null,null,"MTS",null,null,"v1"]
[null,"UC COMPONENTS",2,2,2,2,2,2,2,2,8,2,{"$f":"L97+K97","v":10},"EA",null,"18-8 SSTL","WF-25",null,null,"FLAT WASHER, 1/4 IN","HW",null,null,"OTS"]
[null,"UC COMPONENTS",2,2,2,2,2,2,2,2,8,2,10,"EA",null,"18-8 SSTL","C-2010-N",null,null,"SHCS 1/4-20 UNC-2A X .625 LONG","HW",null,null,"OTS"]
[null,"UC COMPONENTS",2,2,2,2,2,2,2,2,4,2,6,"EA",null,"18-8 SSTL","WF-08",null,null,"FLAT WASHER, 8-32","HW",null,null,"OTS"]
[null,"UC COMPONENTS",2,2,2,2,2,2,2,2,4,2,6,"EA",null,"18-8 SSTL","C-810-N",null,null,"SHCS 8-32 UNC-2A X .625 LONG","HW",null,null,"OTS"]
[null,"UC COMPONENTS",2,2,2,2,2,2,2,2,2,2,4,"EA",null,"18-8 SSTL","C-608-N",null,null,"SHCS 6-32 UNC-2A X .5 LONG","HW",null,null,"OTS"]
[null,null,1,1,1,1,1,1,1,1,1,null,1,"EA",null,"-","D1101145",-1,-2,"TCS H2 CO2P TOP PERISCOPE MOUNT ASSY","ASSY",null,null,"MTS",null,null,"v1"]
[null,null,2,{"$f":"$C103","v":2},{"$f":"$C103","v":2},{"$f":"$C103","v":2},2,2,2,2,1,null,1,"EA",null,"Al 6061","D1101144",-1,-2,"H2 CO2P TOP PERISCOPE FIXTURE","PRT",null,null,"MTS",null,null,"v1"]
[null,null,2,2,2,2,2,2,2,2,1,null,1,"EA",null,"-","SL101.6N-PZA12",null,null,"MIRROR MOUNT ASSY","ASSY",null,null,"MTS"]
[null,"NEWPORT  ",3,{"$f":"$C105","v":3},3,3,3,3,3,3,1,null,1,"EA",null,"STL","Q1048496",null,null,"CUSTOM MIRROR MOUNT, MICROCONTROLLE","PRT",null,null,"OTS"]
[null,"EDMUND OPTICS",3,3,3,3,3,3,3,3,1,null,1,"EA",null,"ZERODUR, Al PLT","D1100453",null,null,"ENHANCED ALUMINUM MIRROR, 4 IN DIA","PRT",null,null,"MTS",null,null,"v1"]
[null,"UC COMPONENTS",2,2,2,2,2,2,2,2,4,2,6,"EA",null,"A2 SSTL","MC-616-N",null,null,"SHCS M6 X 16","HW",null,null,"OTS"]
[null,"UC COMPONENTS",2,2,2,2,2,2,2,2,4,2,6,"EA",null,"A2 SSTL","MLW-06",null,null,"WASHER, SPLIT LOCK, M6","HW",null,null,"OTS"]
[null,"UC COMPONENTS",2,2,2,2,2,2,2,2,8,2,10,"EA",null,"A2 SSTL","MC-516-N",null,null,"SHCS M5 X 16","HW",null,null,"OTS"]
[null,"UC COMPONENTS",2,2,2,2,2,2,2,2,8,2,10,"EA",null,"A2 SSTL","MLW-05",null,null,"WASHER, SPLIT LOCK, M5","HW",null,null,"OTS"]
[null,"UC COMPONENTS",2,2,2,2,2,2,2,2,2,2,4,"EA",null,"18-8 SSTL","SHCV-4420",null,null,"SH SHOULDER 8-32 X .375 LONG","HW",null,null,"OTS"]
[null,null,1,1,1,1,1,1,1,1,1,null,1,"EA",null,"-","D1101235","-","-","VIEWPORT CAMERA MIRROR ASSY","ASSY",null,null,"MTS",null,null,"v2"]
[null,null,2,2,2,2,2,2,2,2,1,null,1,"EA",null,"Al 6061","D1101547",null,null,"H2 VIEWPORT CAMERA MIRROR FIXTURE","PRT",null,null,"MTS",null,null,"v1"]
[null,null,2,{"$f":"$C114","v":2},2,2,2,2,2,2,1,null,1,"EA",null,"Al 6061","U200-AC3K",null,null,"3-AXIS MIRROR MOUNT, 2 IN","PRT",null,null,"OTS"]
[null,"EDMUND OPTICS",2,2,2,2,2,2,2,2,1,null,1,"EA",null,"ZERODUR, Al PLT","D1101256",null,null,"ENHANCED ALUMINUM MIRROR, 2 IN DIA","PRT",null,null,"MTS",null,null,"v1"]
[null,"UC COMPONENTS",2,2,2,2,2,2,2,2,6,2,8,"EA",null,"18-8 SSTL","C-806-N",null,null,"SHCS 8-32 UNC-2A X .375 LONG","HW",null,null,"OTS"]
[null,"UC COMPONENTS",2,2,2,2,2,2,2,2,4,1,5,"EA",null,"18-8 SSTL","C-808-N",null,null,"SHCS 8-32 UNC-2A X .5 LONG","HW",null,null,"OTS"]
[null,null,2,2,2,2,2,2,2,2,4,1,5,"EA",null,"18-8 SSTL","WF-08",null,null,"FLAT WASHER, 8-32","HW",null,null,"OTS"]
[null,null,null,null,null,null,null,null,null,null,null,null,null,null,null,"Cu, Au-coated  "]